[Event "S. A. Group BAN-chT 2018"]
[Site "Dhaka"]
[Date "2018.12.09"]
[Round "4"]
[White "Sidhant, Mohapatra"]
[Black "Mohammed Abdul, Malek"]
[Result "0-1"]
[ECO "D13"]
[WhiteElo "2343"]
[BlackElo "2208"]
[Annotator "NA"]
[PlyCount "80"]
[EventDate "2018.12.07"]
[EventType "team-tourn"]
[EventCountry "BAN"]
[SourceTitle "playchess.com"]
[Source "ChessBase"]
[SourceQuality "1"]
[TimeControl "5400+30"]

1. Nf3 {[%emt 0:00:00]} d5 {[%emt 0:00:00]} 2. g3 {[%emt 0:00:07]} c5 {[%emt 0:00:00]} 3. Bg2 {[%emt 0:01:09]} Nc6 {[%emt 0:00:00]} 4. d4 {[%emt 0:01:24]} Nf6 {[%emt 0:00:09]} 5. c3 {[%emt 0:00:53]} e6 {[%emt 0:00:58]} 6. O-O {[%emt 0:00:22]} cxd4 {[%emt 0:01:06]} 7. cxd4 {[%emt 0:00:41]} Bd6 {[%emt 0:00:09]} 8. Nc3 {[%emt 0:01:10]} O-O {[%emt 0:00:10]} 9. a3 {[%emt 0:01:42]} a6 {[%emt 0:01:24]} 10. Re1 {[%emt 0:04:09]} h6 {[%emt 0:09:11]} 11. Qc2 {[%emt 0:05:56]} Bd7 {[%emt 0:01:36]} 12. e4 {[%emt 0:01:24]} dxe4 $11 {[%emt 0:00:40]} 13. Nxe4 {[%emt 0:00:08]} Be7 {[%emt 0:02:14]} 14. Nc5 {[%emt 0:07:24]} Rc8 {[%emt 0:11:12]} 15. b4 {[%emt 0:03:24]} b6 {[%emt 0:06:07]} 16. Nxd7 {[%emt 0:00:12]} Nxd4 {[%emt 0:06:30]} 17. Nxf6+ {[%emt 0:07:48]} Bxf6 {[%emt 0:00:24]} 18. Qb1 {[%emt 0:00:08]} Rxc1 {[%emt 0:08:58]} 19. Rxc1 {[%emt 0:00:32]} Ne2+ {[%emt 0:00:23]} 20. Kh1 {[%emt 0:00:10]} Nxc1 {[%emt 0:00:06]} 21. Qxc1 {[%emt 0:00:07]} Bxa1 {[%emt 0:00:13]} 22. Qxa1 {[%emt 0:00:08]} Qd3 {[%emt 0:00:17]} 23. h4 {[%emt 0:09:24]} Rd8 {[%emt 0:03:28]} 24. Qb2 {[%emt 0:10:31]} Rc8 {[%emt 0:03:32]} 25. Kh2 {[%emt 0:23:42]} Rc2 {[%emt 0:02:36]} 26. Qb1 {[%emt 0:00:18]} Qc3 {[%emt 0:00:10]} 27. Qd1 {[%emt 0:00:09]} Rxf2 {[%emt 0:01:38]} 28. Kh3 {[%emt 0:05:22]} Qc2 {[%emt 0:01:36]} 29. Qxc2 {[%emt 0:01:49]} Rxc2 {[%emt 0:00:03]} 30. Ne5 {[%emt 0:00:07]} Ra2 {[%emt 0:00:57]} 31. Nc4 {[%emt 0:00:13]} b5 {[%emt 0:00:13]} 32. Na5 {[%emt 0:00:02]} Rxa3 {[%emt 0:00:25]} 33. Bb7 {[%emt 0:00:04]} Ra4 {[%emt 0:00:28]} 34. Nc6 {[%emt 0:00:06]} Kf8 {[%emt 0:01:40]} 35. Kg4 {[%emt 0:00:08]} a5 {[%emt 0:00:26]} 36. Nxa5 {[%emt 0:00:14]} Rxb4+ {[%emt 0:00:09]} 37. Kf3 {[%emt 0:00:19]} Ra4 {[%emt 0:00:36]} 38. Nc6 {[%emt 0:00:05]} b4 {[%emt 0:00:37]} 39. Ke2 {[%emt 0:00:06]} b3 {[%emt 0:00:20]} 40. Kd3 {[%emt 0:00:04]} Rc4 {[%emt 0:03:33] Kd4 [%clk 0:00:00]} 0-1

[Event "S. A. Group BAN-chT 2018"]
[Site "Dhaka"]
[Date "2018.12.09"]
[Round "4"]
[White "Mohammad Minhaz Uddin"]
[Black "Patil, Pratik"]
[Result "1/2-1/2"]
[ECO "B83"]
[WhiteElo "2290"]
[BlackElo "2178"]
[Annotator "NA"]
[PlyCount "75"]
[EventDate "2018.12.07"]
[EventType "team-tourn"]
[EventCountry "BAN"]
[SourceTitle "playchess.com"]
[Source "ChessBase"]
[SourceQuality "1"]
[TimeControl "5400+30"]

1. e4 {[%emt 0:00:00]} c5 {[%emt 0:00:00]} 2. Nf3 {[%emt 0:00:00]} e6 {[%emt 0:00:00]} 3. d4 {[%emt 0:00:00]} cxd4 {[%emt 0:00:02]} 4. Nxd4 {[%emt 0:00:00]} Nc6 {[%emt 0:00:25]} 5. Nc3 {[%emt 0:00:00]} Qc7 {[%emt 0:00:13]} 6. Be2 {[%emt 0:00:01]} Nf6 {[%emt 0:00:59]} 7. O-O {[%emt 0:01:21]} Be7 {[%emt 0:04:50]} 8. Be3 {[%emt 0:00:14]} O-O {[%emt 0:01:58]} 9. f4 {[%emt 0:06:02]} d6 {[%emt 0:01:19]} 10. Kh1 {[%emt 0:00:55]} Nxd4 {[%emt 0:01:14]} 11. Bxd4 {[%emt 0:00:25]} e5 {[%emt 0:00:26]} 12. Be3 {[%emt 0:00:07]} b6 {[%emt 0:02:14]} 13. fxe5 {[%emt 0:23:42]} dxe5 {[%emt 0:00:48]} 14. Bg5 {[%emt 0:00:11]} Bb7 {[%emt 0:09:19]} 15. Bxf6 {[%emt 0:00:28]} Bxf6 {[%emt 0:00:02]} 16. Rf3 {[%emt 0:02:39]} Bg5 {[%emt 0:16:18]} 17. Bd3 {[%emt 0:07:25]} Rad8 {[%emt 0:15:35]} 18. Qf1 {[%emt 0:02:39]} g6 {[%emt 0:09:13]} 19. Qe2 {[%emt 0:16:03]} Kg7 {[%emt 0:07:02]} 20. Rff1 {[%emt 0:02:07]} Qc5 {[%emt 0:10:34]} 21. Rad1 {[%emt 0:03:08]} Qe3 {[%emt 0:02:03]} 22. Qg4 {[%emt 0:03:35]} h5 {[%emt 0:02:22]} 23. Qf3 {[%emt 0:00:04]} Qxf3 {[%emt 0:01:08]} 24. gxf3 {[%emt 0:01:16]} Be3 {[%emt 0:00:33]} 25. b3 {[%emt 0:02:55]} Bd4 {[%emt 0:07:10]} 26. Nb5 {[%emt 0:00:13]} a6 {[%emt 0:01:52]} 27. Nc7 {[%emt 0:03:48]} Rd7 {[%emt 0:02:15]} 28. Nxa6 {[%emt 0:00:51]} Bxa6 {[%emt 0:00:48]} 29. Bxa6 {[%emt 0:00:44]} Ra7 {[%emt 0:00:06]} 30. Bd3 {[%emt 0:03:05]} Rxa2 {[%emt 0:00:04]} 31. f4 {[%emt 0:00:06]} Rfa8 {[%emt 0:04:38]} 32. Kg2 Ra1 33. fxe5 Rxd1 34. Rxd1 Ra1 35. e6 fxe6 36. Rxa1 Bxa1 37. Kf3 Kf6 {[%emt 0:00:43]} 38. h3 1/2-1/2

[Event "S. A. Group BAN-chT 2018"]
[Site "Dhaka"]
[Date "2018.12.09"]
[Round "4"]
[White "Islam, Kh. Aminul"]
[Black "Subhayan Kundu"]
[Result "0-1"]
[ECO "A48"]
[WhiteElo "2253"]
[BlackElo "2185"]
[Annotator "NA"]
[PlyCount "124"]
[EventDate "2018.12.07"]
[EventType "team-tourn"]
[EventCountry "BAN"]
[SourceTitle "playchess.com"]
[Source "ChessBase"]
[SourceQuality "1"]
[TimeControl "5400+30"]

1. d4 {[%emt 0:00:00]} c5 {[%emt 0:00:00]} 2. e3 {[%emt 0:00:45]} Nf6 {[%emt 0:00:10]} 3. Nf3 {[%emt 0:00:17]} g6 {[%emt 0:00:05]} 4. Be2 {[%emt 0:02:22]} Bg7 {[%emt 0:00:14]} 5. O-O {[%emt 0:01:02]} O-O {[%emt 0:02:22]} 6. b3 {[%emt 0:14:42]} b6 {[%emt 0:03:09]} 7. Bb2 {[%emt 0:01:00]} Bb7 {[%emt 0:00:01]} 8. Nbd2 {[%emt 0:03:09]} d6 {[%emt 0:01:33]} 9. Re1 {[%emt 0:04:33]} Nbd7 {[%emt 0:00:03]} 10. c4 {[%emt 0:01:33]} Re8 {[%emt 0:02:38]} 11. Qc2 {[%emt 0:13:31]} e5 {[%emt 0:08:42]} 12. dxe5 {[%emt 0:11:32]} dxe5 {[%emt 0:00:16]} 13. Red1 {[%emt 0:09:18]} Qc7 {[%emt 0:03:41]} 14. Nf1 {[%emt 0:02:36]} e4 {[%emt 0:03:22]} 15. Ne1 {[%emt 0:01:01]} Ne5 {[%emt 0:01:33]} 16. Bc3 {[%emt 0:00:53]} h5 {[%emt 0:05:00]} 17. Qd2 {[%emt 0:05:02]} Nh7 {[%emt 0:10:58]} 18. Rac1 {[%emt 0:01:56]} Ng5 {[%emt 0:15:34]} 19. Kh1 {[%emt 0:00:55]} Nef3 {[%emt 0:10:41]} 20. Qb2 {[%emt 0:03:53]} Ne5 {[%emt 0:00:04]} 21. Rd2 {[%emt 0:08:02]} Qe7 {[%emt 0:01:45]} 22. Rcd1 {[%emt 0:01:50]} Qf6 {[%emt 0:01:13]} 23. Bxe5 {[%emt 0:00:51]} Rxe5 {[%emt 0:00:35]} 24. Kg1 {[%emt 0:00:39]} Nh3+ {[%emt 0:00:12]} 25. gxh3 {[%emt 0:00:58]} Rg5+ {[%emt 0:00:04]} 26. Ng3 {[%emt 0:00:28]} Qxb2 {[%emt 0:00:18]} 27. Rxb2 {[%emt 0:00:06]} Bxb2 {[%emt 0:00:16]} 28. Rd7 {[%emt 0:00:43]} Rb8 {[%emt 0:00:01]} 29. Ng2 {[%emt 0:00:35]} Re5 {[%emt 0:01:48]} 30. Nf4 {[%emt 0:03:42]} h4 {[%emt 0:00:59]} 31. Nf1 {[%emt 0:00:02]} Ree8 {[%emt 0:00:13]} 32. Nd5 {[%emt 0:01:10]} Kf8 {[%emt 0:01:46]} 33. Nd2 {[%emt 0:01:27]} Red8 {[%emt 0:00:01]} 34. Rxd8+ {[%emt 0:01:12]} Rxd8 {[%emt 0:00:15]} 35. Nxe4 {[%emt 0:00:22]} Bxd5 {[%emt 0:00:01]} 36. cxd5 {[%emt 0:00:42]} Rxd5 {[%emt 0:00:02]} 37. Bc4 {[%emt 0:00:29]} Rd1+ {[%emt 0:00:00]} 38. Kg2 {[%emt 0:00:16]} f6 {[%emt 0:01:39]} 39. a4 {[%emt 0:01:03]} Ke7 {[%emt 0:00:54]} 40. Be2 {[%emt 0:00:49]} Rd8 {[%emt 0:01:19]} 41. Bc4 {[%emt 0:01:03]} Be5 {[%emt 0:00:21]} 42. f4 {[%emt 0:04:31]} Bc7 43. Nc3 Rd2+ 44. Kg1 f5 45. Nd5+ Kd6 46. Nc3 Bd8 47. Nb5+ Kd7 48. Nxa7 g5 49. Nb5 gxf4 50. exf4 Bf6 51. Kh1 Bd4 52. Bf1 Be3 53. Nc3 Bxf4 54. Bc4 Kd6 55. Ne2 Ke5 56. Kg2 Ke4 57. Kf2 Be5 58. Bb5 Bd4+ 59. Ke1 Ke3 60. Kf1 f4 61. Nxd4 cxd4 62. b4 {[%emt 0:05:41]} Rd1+ 0-1

[Event "S. A. Group BAN-chT 2018"]
[Site "Dhaka"]
[Date "2018.12.09"]
[Round "4"]
[White "Anata, Choudhury"]
[Black "Ahmed, Sk. Nasir"]
[Result "1/2-1/2"]
[ECO "B69"]
[WhiteElo "2169"]
[BlackElo "2119"]
[Annotator "NA"]
[PlyCount "45"]
[EventDate "2018.12.07"]
[EventType "team-tourn"]
[EventCountry "BAN"]
[SourceTitle "playchess.com"]
[Source "ChessBase"]
[SourceQuality "1"]
[TimeControl "5400+30"]

1. e4 {[%emt 0:23:02]} c5 {[%emt 0:00:00]} 2. Nf3 {[%emt 0:00:12]} d6 {[%emt 0:00:00]} 3. d4 {[%emt 0:00:09]} cxd4 {[%emt 0:00:00]} 4. Nxd4 {[%emt 0:00:06]} Nf6 {[%emt 0:00:04]} 5. Nc3 {[%emt 0:00:05]} Nc6 {[%emt 0:00:10]} 6. Bg5 {[%emt 0:00:13]} e6 {[%emt 0:00:05]} 7. Qd2 {[%emt 0:00:08]} a6 {[%emt 0:00:42]} 8. O-O-O {[%emt 0:00:11]} Bd7 {[%emt 0:00:22]} 9. f4 {[%emt 0:00:14]} Be7 {[%emt 0:00:17]} 10. Nf3 {[%emt 0:00:32]} b5 {[%emt 0:00:51]} 11. Bxf6 {[%emt 0:02:12]} gxf6 {[%emt 0:00:12]} 12. f5 {[%emt 0:00:14]} Qb6 {[%emt 0:09:17]} 13. Kb1 {[%emt 0:01:03]} O-O-O {[%emt 0:11:12]} 14. g3 {[%emt 0:03:55]} Kb8 {[%emt 0:15:39]} 15. fxe6 {[%emt 0:01:36]} fxe6 {[%emt 0:00:06]} 16. Bh3 {[%emt 0:03:02]} Qc5 {[%emt 0:23:32]} 17. Ne2 {[%emt 0:25:26]} Ne5 {[%emt 0:26:59]} 18. Nfd4 {[%emt 0:07:08]} Nc4 {[%emt 0:00:05]} 19. Qc1 {[%emt 0:11:15]} e5 {[%emt 0:01:49]} 20. Ne6 {[%emt 0:09:50]} Bxe6 {[%emt 0:01:39]} 21. Bxe6 {[%emt 0:00:08]} h5 {[%emt 0:03:45]} 22. Rd3 Bf8 {[%emt 0:00:30]} 23. Qe1 1/2-1/2

[Event "S. A. Group BAN-chT 2018"]
[Site "Dhaka"]
[Date "2018.12.09"]
[Round "4"]
[White "Hossain, Showkat Pollab"]
[Black "Abu Sufian, Shakil"]
[Result "1/2-1/2"]
[ECO "B18"]
[WhiteElo "2131"]
[BlackElo "2230"]
[Annotator "NA"]
[PlyCount "54"]
[EventDate "2018.12.07"]
[EventType "team-tourn"]
[EventCountry "BAN"]
[SourceTitle "playchess.com"]
[Source "ChessBase"]
[SourceQuality "1"]
[TimeControl "5400+30"]

1. e4 {[%emt 0:00:00]} c6 {[%emt 0:00:00]} 2. d4 {[%emt 0:00:00]} d5 {[%emt 0:00:00]} 3. Nc3 {[%emt 0:00:00]} dxe4 {[%emt 0:00:00]} 4. Nxe4 {[%emt 0:00:00]} Bf5 {[%emt 0:00:20]} 5. Ng3 {[%emt 0:00:00]} Bg6 {[%emt 0:00:05]} 6. Bc4 {[%emt 0:00:04]} e6 {[%emt 0:02:33]} 7. N1e2 {[%emt 0:00:06]} Nf6 {[%emt 0:05:12]} 8. Nf4 {[%emt 0:00:20]} Bd6 {[%emt 0:00:57]} 9. c3 {[%emt 0:02:57]} Qc7 {[%emt 0:12:28]} 10. Qf3 {[%emt 0:01:47]} Nd5 {[%emt 0:00:58]} 11. Nxg6 {[%emt 0:03:01]} hxg6 {[%emt 0:01:13]} 12. h3 {[%emt 0:03:07]} Nd7 {[%emt 0:02:11]} 13. Ne4 {[%emt 0:02:50]} Be7 {[%emt 0:00:43]} 14. Bg5 {[%emt 0:07:19]} N7f6 {[%emt 0:01:30]} 15. Nxf6+ {[%emt 0:01:52]} gxf6 {[%emt 0:01:04]} 16. Bxd5 {[%emt 0:05:32]} fxg5 {[%emt 0:00:25]} 17. Bb3 {[%emt 0:00:17]} a5 {[%emt 0:08:27]} 18. Bc4 {[%emt 0:02:32]} a4 {[%emt 0:01:48]} 19. Kf1 {[%emt 0:09:35]} Ra5 {[%emt 0:01:43]} 20. Re1 {[%emt 0:02:55]} Rf5 {[%emt 0:11:20]} 21. Qe2 {[%emt 0:03:45]} Kf8 {[%emt 0:01:31]} 22. Bd3 {[%emt 0:03:15]} Ra5 {[%emt 0:00:18]} 23. g3 {[%emt 0:01:04]} Kg7 {[%emt 0:01:25]} 24. Kg2 {[%emt 0:00:36]} Bf6 {[%emt 0:01:15]} 25. Qc2 {[%emt 0:03:45]} Rd8 {[%emt 0:11:28]} 26. Re2 {[%emt 0:03:12]} Qd6 {[%emt 0:02:24]} 27. Be4 {[%emt 0:02:36]} Qc7 {[%emt 0:04:41]} 1/2-1/2

[Event "S. A. Group BAN-chT 2018"]
[Site "Dhaka"]
[Date "2018.12.09"]
[Round "4"]
[White "Uten"]
[Black "Hasan, Eunus"]
[Result "0-1"]
[ECO "B42"]
[WhiteElo "2114"]
[BlackElo "2154"]
[Annotator "NA"]
[PlyCount "85"]
[EventDate "2018.12.07"]
[EventType "team-tourn"]
[EventCountry "BAN"]
[SourceTitle "playchess.com"]
[Source "ChessBase"]
[SourceQuality "1"]
[TimeControl "5400+30"]

1. e4 {[%emt 1:30:30]} c5 {[%emt 1:30:30]} 2. Nf3 {[%emt 0:00:30]} e6 {[%emt 0:00:30]} 3. d4 {[%emt 0:00:30]} cxd4 {[%emt 0:00:30]} 4. Nxd4 {[%emt 0:00:30]} a6 {[%emt 0:00:30]} 5. Bd3 {[%emt 0:00:30]} g6 {[%emt 0:00:30]} 6. O-O {[%emt 0:00:30]} Bg7 {[%emt 0:00:30]} 7. c3 {[%emt 0:00:30]} Ne7 {[%emt 0:00:30]} 8. Qe2 {[%emt 0:00:30]} Nbc6 {[%emt 0:00:30]} 9. Be3 {[%emt 0:00:30]} Ne5 {[%emt 0:00:30]} 10. Bc2 {[%emt 0:00:30]} d5 {[%emt 0:00:30]} 11. Nd2 {[%emt 0:00:30]} dxe4 {[%emt 0:00:30]} 12. Nxe4 {[%emt 0:00:30]} O-O {[%emt 0:00:30]} 13. Rad1 {[%emt 0:00:30]} Nd5 {[%emt 0:00:30]} 14. Bg5 {[%emt 0:00:30]} Qc7 {[%emt 0:00:30]} 15. Bb3 {[%emt 0:00:30]} h6 {[%emt 0:00:30]} 16. Bc1 {[%emt 0:00:30]} b5 {[%emt 0:00:30]} 17. Rfe1 {[%emt 0:00:30]} Bb7 {[%emt 0:00:30]} 18. Bc2 {[%emt 0:00:30]} Rac8 {[%emt 0:00:30]} 19. Ng3 {[%emt 0:00:30]} Nc4 {[%emt 0:00:30]} 20. Qg4 {[%emt 0:00:30]} e5 {[%emt 0:00:30]} 21. Ndf5 {[%emt 0:00:30]} Nf4 {[%emt 0:00:30]} 22. Bxf4 {[%emt 0:00:30]} exf4 {[%emt 0:00:30]} 23. Ne7+ {[%emt 0:00:30]} Kh7 {[%emt 0:00:30]} 24. Nxg6 {[%emt 0:00:30]} fxg3 {[%emt 0:00:30]} 25. hxg3 {[%emt 0:00:30]} fxg6 {[%emt 0:00:30]} 26. Rd7 {[%emt 0:00:30]} Qc6 {[%emt 0:00:30]} 27. Be4 {[%emt 0:00:30]} Ne5 {[%emt 0:00:30]} 28. Bxc6 {[%emt 0:00:30]} Nxg4 {[%emt 0:00:30]} 29. Bxb7 {[%emt 0:00:30]} Rce8 {[%emt 0:00:30]} 30. Rb1 {[%emt 0:00:30]} a5 {[%emt 0:00:30]} 31. f3 {[%emt 0:00:30]} Ne3 {[%emt 0:00:30]} 32. Be4 {[%emt 0:00:30]} b4 {[%emt 0:00:30]} 33. Re1 {[%emt 0:00:30]} Nf5 {[%emt 0:00:30]} 34. Kf2 {[%emt 0:00:30]} Rd8 {[%emt 0:00:30]} 35. Red1 {[%emt 0:00:30]} Rxd7 {[%emt 0:00:30]} 36. Rxd7 {[%emt 0:00:30]} bxc3 {[%emt 0:00:30]} 37. bxc3 {[%emt 0:00:30]} Rb8 {[%emt 0:00:30]} 38. f4 {[%emt 0:00:30]} h5 {[%emt 0:00:30]} 39. Kf3 {[%emt 0:00:30]} Rb2 {[%emt 0:00:30]} 40. a4 {[%emt 0:00:30]} Rb3 {[%emt 0:00:30]} 41. Rc7 {[%emt 0:00:30]} Rxc3+ {[%emt 0:00:30]} 42. Rxc3 {[%emt 0:00:30]} Bxc3 {[%emt 0:00:30]} 43. g4 {[%emt 0:00:30]} 0-1

[Event "S. A. Group BAN-chT 2018"]
[Site "Dhaka"]
[Date "2018.12.10"]
[Round "5"]
[White "Mohammed Abdul, Malek"]
[Black "Saiful Islam, Chowdhury"]
[Result "1-0"]
[ECO "D30"]
[WhiteElo "2208"]
[BlackElo "2120"]
[Annotator "NA RC"]
[PlyCount "83"]
[EventDate "2018.12.07"]
[EventType "team-tourn"]
[EventCountry "BAN"]
[SourceTitle "playchess.com"]
[Source "ChessBase"]
[SourceQuality "1"]
[TimeControl "5400+30"]

{[%evp 14,83,20,22,98,77,79,72,168,154,147,157,160,81,66,33,90,68,94,99,164,131,32767,209,210,32767,222,214,32767,237,214,200,234,163,156,163,32767,32767,32767,32767,32767,32767,326,706,670,914,605,1082,32767,32767,32767,32767,32767,32767,32767,32767,29993,32767,32767,32767,32767,32767,32767,32767,32767,32767,32767,32767,29987,395,29988,29990]} 1. d4 {[%emt 0:00:00]} Nf6 {[%emt 0:01:10]} 2. Nf3 {[%emt 0:00:00]} d5 {[%emt 0:00:56]} 3. c4 {[%emt 0:00:00]} e6 {[%emt 0:00:18]} 4. e3 {[%emt 0:00:06]} c6 {[%emt 0:00:49]} 5. Nbd2 {[%emt 0:00:13]} Nbd7 {[%emt 0:00:15]} 6. Bd3 {[%emt 0:00:09]} Bd6 {[%emt 0:00:31]} 7. O-O {[%emt 0:00:10]} O-O {[%emt 0:03:14]} 8. e4 {[%emt 0:06:20] LiveBook: 779 Games D30: Queen's Gambit Declined: Systems without Nc3} Nh5 $146 {[%emt 0:06:51]} ({Predecessor:} 8... e5 $14 9. cxd5 cxd5 10. Re1 h6 11. exd5 exd4 12. Nc4 Nb6 13. Nxd6 Qxd6 14. Nxd4 Nbxd5 15. Bf1 Rd8 16. Nb5 Qb6 17. Qf3 Bd7 18. Nc3 Bc6 19. Nxd5 Rxd5 20. b3 Re5 21. Qc3 Ng4 22. Be3 Nxe3 23. Qxe5 {½-½ (23) Onischuk,A (2685)-Duda,J (2697) Khanty-Mansiysk 2017}) 9. e5 {[%emt 0:02:52]} Be7 {[%emt 0:01:41]} 10. Re1 {[%emt 0:00:26]} b6 {[%emt 0:03:20]} (10... Nf4 $16 11. Bc2 Ng6) 11. cxd5 {[%emt 0:01:02]} cxd5 {[%emt 0:00:48]} 12. Nf1 {[%emt 0:00:06]} g6 {[%emt 0:00:14]} 13. g4 {[%emt 0:01:32]} (13. Bh6 $18 {and White stays clearly on top.}) 13... Ng7 {[%emt 0:00:22]} 14. g5 {[%emt 0:00:47]} Bb7 {[%emt 0:01:14]} 15. h4 {[%emt 0:00:28]} a6 {[%emt 0:00:10]} 16. Ne3 {[%emt 0:00:53]} b5 {[%emt 0:02:06]} (16... a5 $16) 17. Ng4 {[%emt 0:00:18]} Bb4 {[%emt 0:03:17]} 18. Bd2 {[%emt 0:02:42]} Be7 {[%emt 0:03:11]} 19. Nf6+ {[%emt 0:01:30]} Kh8 {[%emt 0:00:28]} 20. Kg2 {[%emt 0:01:07]} Nf5 {[%emt 0:04:02]} (20... h5 $142 21. gxh6 Nf5) 21. Bxf5 {[%emt 0:01:38]} gxf5 {[%emt 0:00:21]} 22. Ng1 {[%emt 0:02:27]} Bxf6 {[%emt 0:06:52]} 23. exf6 {[%emt 0:01:59]} Rg8 {[%emt 0:04:58]} 24. Kh1 {[%emt 0:06:44]} Rc8 {[%emt 0:02:33]} 25. Bf4 {[%emt 0:02:25]} Qb6 {[%emt 0:02:59]} 26. Nf3 {[%emt 0:00:18]} b4 {[%emt 0:01:12]} 27. Rg1 {[%emt 0:00:46]} a5 {[%emt 0:01:35]} 28. Ne5 {[%emt 0:00:14]} Nxe5 {[%emt 0:00:23]} 29. Bxe5 {[%emt 0:00:07]} Qc6 {[%emt 0:00:47]} 30. h5 {[%emt 0:01:22]} Rgd8 {[%emt 0:11:20]} 31. g6 {[%emt 0:01:02]} Rd7 {[%emt 0:01:44]} 32. gxh7 {[%emt 0:01:10]} Rdd8 {[%emt 0:02:08]} 33. Qd2 {[%emt 0:03:11]} f4 {[%emt 0:02:48]} 34. Rac1 {[%emt 0:01:53]} Qb5 {[%emt 0:00:52]} 35. Rxc8 {[%emt 0:09:22]} Rxc8 {[%emt 0:00:14]} 36. Qxf4 {[%emt 0:00:09]} Qd3 {[%emt 0:01:09]} 37. Rg8+ {[%emt 0:01:42]} Rxg8 {[%emt 0:00:26]} 38. hxg8=Q+ {[%emt 0:00:15]} Kxg8 {[%emt 0:00:02]} 39. Qg5+ {[%emt 0:00:08]} Kf8 {[%emt 0:00:17]} 40. Qg7+ {[%emt 0:00:07]} Ke8 {[%emt 0:00:07]} 41. Qg8+ $18 {[%emt 0:00:06]} Kd7 {[%emt 0:00:09]} 42. Qxf7+ {[%emt 0:00:09]} 1-0

[Event "S. A. Group BAN-chT 2018"]
[Site "Dhaka"]
[Date "2018.12.11"]
[Round "6"]
[White "Sai Agni Jeevitesh, J."]
[Black "Sourath Biswas"]
[Result "1-0"]
[ECO "E73"]
[WhiteElo "2336"]
[BlackElo "1881"]
[Annotator "NA"]
[PlyCount "63"]
[EventDate "2018.12.07"]
[EventType "team-tourn"]
[EventCountry "BAN"]
[SourceTitle "playchess.com"]
[Source "ChessBase"]
[SourceQuality "1"]
[TimeControl "5400+30"]

1. d4 {[%emt 1:30:30]} Nf6 {[%emt 1:30:30]} 2. c4 {[%emt 0:00:30]} g6 {[%emt 0:00:30]} 3. Nc3 {[%emt 0:00:30]} Bg7 {[%emt 0:00:30]} 4. e4 {[%emt 0:00:30]} d6 {[%emt 0:00:30]} 5. Be2 {[%emt 0:00:30]} O-O {[%emt 0:00:30]} 6. Be3 {[%emt 0:00:30]} e5 {[%emt 0:00:30]} 7. d5 {[%emt 0:00:30]} a5 {[%emt 0:00:30]} 8. g4 {[%emt 0:00:30]} Ne8 {[%emt 0:00:30] E73: King's Indian: Averbakh Variation without 6...c5} (8... Na6 9. h4 Nc5 10. f3 h5 11. g5 Nh7 12. Kd2 Bd7 13. Nh3 c6 14. Nf2 cxd5 15. exd5 f5 16. gxf6 Nxf6 17. Bxc5 dxc5 {0-1 (37) Vallejo Pons,F (2705)-Radjabov,T (2741) Palma de Mallorca 2017}) 9. h4 {[%emt 0:00:30]} f5 {[%emt 0:00:30] LiveBook: 3 Games} 10. gxf5 {[%emt 0:00:30]} gxf5 {[%emt 0:00:30]} 11. exf5 {[%emt 0:00:30]} Bxf5 {[%emt 0:00:30]} 12. Nf3 {[%emt 0:00:30]} Na6 {[%emt 0:00:30]} 13. Rg1 {[%emt 0:00:30]} Nb4 $146 {[%emt 0:00:30]} ({Predecessor:} 13... Kh8 14. Ng5 Nc5 15. Bxc5 dxc5 16. Bd3 {0-1 (29) Shishkin,V (2512)-Niekras,D (2221) Krakow 2015}) 14. Rc1 {[%emt 0:00:30]} e4 {[%emt 0:00:30]} 15. Ng5 {[%emt 0:00:30]} (15. Nd4 $16) 15... h6 {[%emt 0:00:30]} 16. Ne6 {[%emt 0:00:30]} Bxe6 {[%emt 0:00:30]} 17. dxe6 {[%emt 0:00:30]} Qxh4 {[%emt 0:00:30]} 18. a3 {[%emt 0:00:30]} Nd3+ {[%emt 0:00:30]} 19. Bxd3 {[%emt 0:00:30]} exd3 {[%emt 0:00:30]} 20. Qxd3 {[%emt 0:00:30]} Rf6 {[%emt 0:00:30]} 21. Kd2 {[%emt 0:00:30]} c6 {[%emt 0:00:30]} 22. Ne4 {[%emt 0:00:30]} Rxe6 {[%emt 0:00:30]} 23. Ng3 {[%emt 0:00:30]} Qf6 {[%emt 0:00:30]} 24. Rb1 {[%emt 0:00:30]} Re5 {[%emt 0:00:30]} 25. f4 {[%emt 0:00:30]} Re7 {[%emt 0:00:30]} 26. Nh5 {[%emt 0:00:30]} Qf7 {[%emt 0:00:30]} 27. Rg6 {[%emt 0:00:30]} d5 {[%emt 0:00:30]} 28. Nxg7 {[%emt 0:00:30]} Nxg7 {[%emt 0:00:30]} 29. Rbg1 {[%emt 0:00:30]} Qf8 {[%emt 0:00:30]} 30. Bd4 {[%emt 0:00:30]} Qxf4+ {[%emt 0:00:30]} 31. Kc3 {[%emt 0:00:30]} Kf8 $18 {[%emt 0:00:30]} 32. Rf6+ {[%emt 0:00:30]} 1-0